[Event "Titled Tuesday Blitz November 08 Early 2022"]
[White "Bernat, David"]
[Black "Raahul V S"]
[WhiteFideId "2099225"]
[BlackFideId "25035525"]
[WhiteElo "2344"]
[BlackElo "2233"]
[Result "0-1"]
[Round "07"]
[TimeControl "180+1"]
[Date "2022.11.09"]
[WhiteClock "0:00:45"]
[BlackClock "0:02:03"]

1. c4 {[%clk 0:03:00]}  e6 {[%clk 0:02:58]} 2. e4 {[%clk 0:02:59]}  d5 {[%clk 0:02:56]} 3. exd5 {[%clk 0:03:00]}  exd5 {[%clk 0:02:56]} 4. cxd5 {[%clk 0:03:01]}  Qxd5 {[%clk 0:02:55]} 5. Nc3 {[%clk 0:03:01]}  Qa5 {[%clk 0:02:53]} 6. Nf3 {[%clk 0:03:00]}  Nf6 {[%clk 0:02:50]} 7. Bc4 {[%clk 0:02:58]}  Be7 {[%clk 0:02:48]} 8. O-O {[%clk 0:02:57]}  O-O {[%clk 0:02:43]} 9. Re1 {[%clk 0:02:57]}  Bd6 {[%clk 0:02:41]} 10. h3 {[%clk 0:02:50]}  Nbd7 {[%clk 0:02:39]} 11. a3 {[%clk 0:02:48]}  Nb6 {[%clk 0:02:26]} 12. Ba2 {[%clk 0:02:43]}  Qh5 {[%clk 0:02:22]} 13. d4 {[%clk 0:02:41]}  Bxh3 {[%clk 0:02:18]} 14. gxh3 {[%clk 0:02:42]}  Qxh3 {[%clk 0:02:18]} 15. Ne5 {[%clk 0:02:29]}  Bxe5 {[%clk 0:02:17]} 16. dxe5 {[%clk 0:02:18]}  Rad8 {[%clk 0:02:15]} 17. Qe2 {[%clk 0:01:43]}  Rd4 {[%clk 0:02:13]} 18. f4 {[%clk 0:01:19]}  Qg3+ {[%clk 0:02:12]} 19. Kf1 {[%clk 0:01:13]}  Ng4 {[%clk 0:02:07]} 20. Qg2 {[%clk 0:00:45]}  Nh2+ {[%clk 0:02:05]} 21. Kg1 {[%clk 0:00:45]}  Nf3+ {[%clk 0:02:03]} 0-1


[Site "https://www.chess.com"]

[Event "Titled Tuesday Blitz November 08 Early 2022"]
[White "Bibilashvili, Lali"]
[Black "Hart, Braeden"]
[WhiteFideId "13604236"]
[BlackFideId "30962587"]
[WhiteElo "1819"]
[BlackElo "2421"]
[Result "0-1"]
[Round "07"]
[TimeControl "180+1"]
[Date "2022.11.09"]
[WhiteClock "0:00:17"]
[BlackClock "0:00:20"]

1. c4 {[%clk 0:03:00]}  a6 {[%clk 0:02:59]} 2. Nc3 {[%clk 0:02:55]}  b5 {[%clk 0:02:59]} 3. cxb5 {[%clk 0:02:51]}  axb5 {[%clk 0:03:00]} 4. Nxb5 {[%clk 0:02:52]}  c5 {[%clk 0:03:00]} 5. Nf3 {[%clk 0:02:48]}  d5 {[%clk 0:02:57]} 6. g3 {[%clk 0:02:46]}  Nc6 {[%clk 0:02:56]} 7. Bg2 {[%clk 0:02:46]}  e5 {[%clk 0:02:56]} 8. O-O {[%clk 0:02:36]}  h6 {[%clk 0:02:38]} 9. d3 {[%clk 0:02:30]}  Ba6 {[%clk 0:02:38]} 10. Nc3 {[%clk 0:02:29]}  d4 {[%clk 0:02:38]} 11. Ne4 {[%clk 0:02:29]}  f5 {[%clk 0:02:38]} 12. Ned2 {[%clk 0:02:25]}  Nf6 {[%clk 0:02:36]} 13. Qb3 {[%clk 0:02:20]}  Rc8 {[%clk 0:02:07]} 14. Qa4 {[%clk 0:02:12]}  Qb6 {[%clk 0:02:03]} 15. Nc4 {[%clk 0:02:02]}  Bxc4 {[%clk 0:02:03]} 16. dxc4 {[%clk 0:02:02]}  Bd6 {[%clk 0:01:57]} 17. Bd2 {[%clk 0:01:53]}  e4 {[%clk 0:01:55]} 18. Nh4 {[%clk 0:01:52]}  f4 {[%clk 0:01:33]} 19. Bxf4 {[%clk 0:01:47]}  Bxf4 {[%clk 0:01:32]} 20. gxf4 {[%clk 0:01:47]}  g5 {[%clk 0:01:27]} 21. Nf5 {[%clk 0:01:45]}  gxf4 {[%clk 0:01:19]} 22. Nd6+ {[%clk 0:01:43]}  Ke7 {[%clk 0:01:19]} 23. Nxc8+ {[%clk 0:01:43]}  Rxc8 {[%clk 0:01:19]} 24. Qc2 {[%clk 0:01:38]}  Rg8 {[%clk 0:01:11]} 25. Kh1 {[%clk 0:01:37]}  Nb4 {[%clk 0:01:05]} 26. Qd2 {[%clk 0:01:34]}  Qd6 {[%clk 0:01:00]} 27. a3 {[%clk 0:01:17]}  Nc6 {[%clk 0:00:58]} 28. f3 {[%clk 0:01:01]}  e3 {[%clk 0:00:46]} 29. Qd3 {[%clk 0:01:00]}  Rg5 {[%clk 0:00:45]} 30. Rg1 {[%clk 0:00:56]}  Ne5 {[%clk 0:00:43]} 31. Qc2 {[%clk 0:00:53]}  Qd7 {[%clk 0:00:34]} 32. b4 {[%clk 0:00:50]}  d3 {[%clk 0:00:29]} 33. exd3 {[%clk 0:00:48]}  Nxd3 {[%clk 0:00:30]} 34. Rad1 {[%clk 0:00:43]}  Nh5 {[%clk 0:00:23]} 35. h3 {[%clk 0:00:33]}  Nf2+ {[%clk 0:00:22]} 36. Kh2 {[%clk 0:00:21]}  Rxg2+ {[%clk 0:00:19]} 37. Kxg2 {[%clk 0:00:17]}  Qxh3# {[%clk 0:00:20]} 0-1


[Site "https://www.chess.com"]

[Event "Titled Tuesday Blitz November 08 Early 2022"]
[White "Bluebaum, Matthias"]
[Black "Durarbayli, Vasif"]
[WhiteFideId "24651516"]
[BlackFideId "13402935"]
[WhiteElo "2633"]
[BlackElo "2586"]
[Result "1/2-1/2"]
[Round "07"]
[TimeControl "180+1"]
[Date "2022.11.08"]
[WhiteClock "0:00:08"]
[BlackClock "0:00:07"]

1. d4 {[%clk 0:03:00]}  d5 {[%clk 0:03:00]} 2. c4 {[%clk 0:03:00]}  c6 {[%clk 0:03:00]} 3. Nf3 {[%clk 0:02:57]}  Nf6 {[%clk 0:03:01]} 4. Nc3 {[%clk 0:02:57]}  e6 {[%clk 0:03:01]} 5. Qc2 {[%clk 0:02:57]}  dxc4 {[%clk 0:02:55]} 6. e4 {[%clk 0:02:58]}  b5 {[%clk 0:02:54]} 7. Be2 {[%clk 0:02:59]}  Bb7 {[%clk 0:02:49]} 8. O-O {[%clk 0:02:59]}  Nbd7 {[%clk 0:02:49]} 9. b3 {[%clk 0:02:57]}  cxb3 {[%clk 0:02:48]} 10. axb3 {[%clk 0:02:58]}  a6 {[%clk 0:02:47]} 11. e5 {[%clk 0:02:58]}  Nd5 {[%clk 0:02:47]} 12. Nxd5 {[%clk 0:02:59]}  cxd5 {[%clk 0:02:46]} 13. Bd2 {[%clk 0:02:34]}  Rc8 {[%clk 0:02:12]} 14. Qd3 {[%clk 0:02:26]}  Rc6 {[%clk 0:02:02]} 15. h4 {[%clk 0:02:19]}  h6 {[%clk 0:01:56]} 16. g3 {[%clk 0:02:12]}  Be7 {[%clk 0:01:55]} 17. Kg2 {[%clk 0:02:11]}  Qb6 {[%clk 0:01:34]} 18. Be3 {[%clk 0:02:05]}  Bb4 {[%clk 0:01:26]} 19. Rfc1 {[%clk 0:01:55]}  Rxc1 {[%clk 0:01:21]} 20. Rxc1 {[%clk 0:01:56]}  Ke7 {[%clk 0:01:19]} 21. g4 {[%clk 0:01:54]}  Nb8 {[%clk 0:00:59]} 22. g5 {[%clk 0:01:43]}  hxg5 {[%clk 0:00:55]} 23. Bxg5+ {[%clk 0:01:35]}  Kd7 {[%clk 0:00:54]} 24. Kh2 {[%clk 0:01:32]}  Nc6 {[%clk 0:00:51]} 25. Rg1 {[%clk 0:01:32]}  Bf8 {[%clk 0:00:38]} 26. Rg4 {[%clk 0:01:23]}  Ke8 {[%clk 0:00:34]} 27. Be3 {[%clk 0:01:19]}  Ne7 {[%clk 0:00:31]} 28. Bd2 {[%clk 0:00:45]}  Nf5 {[%clk 0:00:29]} 29. Qc2 {[%clk 0:00:39]}  Qd8 {[%clk 0:00:16]} 30. Kg1 {[%clk 0:00:34]}  Qc8 {[%clk 0:00:10]} 31. Qb1 {[%clk 0:00:31]}  g6 {[%clk 0:00:10]} 32. Bd3 {[%clk 0:00:18]}  b4 {[%clk 0:00:10]} 33. Kg2 {[%clk 0:00:17]}  Be7 {[%clk 0:00:08]} 34. Qe1 {[%clk 0:00:17]}  a5 {[%clk 0:00:08]} 35. Bb5+ {[%clk 0:00:16]}  Kf8 {[%clk 0:00:07]} 36. Bd3 {[%clk 0:00:13]}  Ba6 {[%clk 0:00:07]} 37. Bb1 {[%clk 0:00:12]}  Qd8 {[%clk 0:00:04]} 38. Bg5 {[%clk 0:00:13]}  Bxg5 {[%clk 0:00:04]} 39. hxg5 {[%clk 0:00:12]}  Ke7 {[%clk 0:00:04]} 40. Bxf5 {[%clk 0:00:09]}  exf5 {[%clk 0:00:04]} 41. Rf4 {[%clk 0:00:07]}  Qc8 {[%clk 0:00:04]} 42. e6 {[%clk 0:00:06]}  Qxe6 {[%clk 0:00:03]} 43. Ne5 {[%clk 0:00:06]}  f6 {[%clk 0:00:03]} 44. Nxg6+ {[%clk 0:00:06]}  Kd7 {[%clk 0:00:03]} 45. Qxe6+ {[%clk 0:00:07]}  Kxe6 {[%clk 0:00:04]} 46. Nxh8 {[%clk 0:00:08]}  fxg5 {[%clk 0:00:05]} 47. Rf3 {[%clk 0:00:08]}  f4 {[%clk 0:00:05]} 48. Rh3 {[%clk 0:00:08]}  Kf5 {[%clk 0:00:04]} 49. Rh6 {[%clk 0:00:09]}  Bd3 {[%clk 0:00:03]} 50. Nf7 {[%clk 0:00:09]}  Bc2 {[%clk 0:00:03]} 51. f3 {[%clk 0:00:09]}  g4 {[%clk 0:00:03]} 52. Ne5 {[%clk 0:00:08]}  gxf3+ {[%clk 0:00:03]} 53. Kxf3 {[%clk 0:00:08]}  Bd1+ {[%clk 0:00:03]} 54. Kf2 {[%clk 0:00:09]}  Bxb3 {[%clk 0:00:04]} 55. Ra6 {[%clk 0:00:08]}  Ke4 {[%clk 0:00:04]} 56. Rxa5 {[%clk 0:00:08]}  Kxd4 {[%clk 0:00:04]} 57. Nc6+ {[%clk 0:00:08]}  Kc3 {[%clk 0:00:05]} 58. Rc5+ {[%clk 0:00:08]}  Bc4 {[%clk 0:00:05]} 59. Nxb4 {[%clk 0:00:05]}  Kxb4 {[%clk 0:00:05]} 60. Rc8 {[%clk 0:00:06]}  Kc3 {[%clk 0:00:05]} 61. Kf3 {[%clk 0:00:06]}  d4 {[%clk 0:00:05]} 62. Kxf4 {[%clk 0:00:07]}  d3 {[%clk 0:00:06]} 63. Ke3 {[%clk 0:00:07]}  Kb3 {[%clk 0:00:03]} 64. Kd2 {[%clk 0:00:08]}  Bb5 {[%clk 0:00:03]} 65. Rc5 {[%clk 0:00:07]}  Kb4 {[%clk 0:00:04]} 66. Rg5 {[%clk 0:00:08]}  Bc4 {[%clk 0:00:05]} 67. Rg4 {[%clk 0:00:08]}  Kc5 {[%clk 0:00:05]} 68. Kc3 {[%clk 0:00:09]}  Bb5 {[%clk 0:00:06]} 69. Rg5+ {[%clk 0:00:09]}  Kb6 {[%clk 0:00:06]} 70. Rh5 {[%clk 0:00:10]}  Kc6 {[%clk 0:00:06]} 71. Re5 {[%clk 0:00:08]}  Kb6 {[%clk 0:00:06]} 72. Kb4 {[%clk 0:00:09]}  Bc6 {[%clk 0:00:06]} 73. Re6 {[%clk 0:00:09]}  Kc7 {[%clk 0:00:06]} 74. Kc5 {[%clk 0:00:10]}  Ba4 {[%clk 0:00:07]} 75. Rd6 {[%clk 0:00:10]}  Bc2 {[%clk 0:00:06]} 76. Rd4 {[%clk 0:00:10]}  Kb7 {[%clk 0:00:06]} 77. Kb5 {[%clk 0:00:11]}  Kc7 {[%clk 0:00:07]} 78. Rd5 {[%clk 0:00:11]}  Bb1 {[%clk 0:00:06]} 79. Kc5 {[%clk 0:00:09]}  Bc2 {[%clk 0:00:07]} 80. Rd4 {[%clk 0:00:09]}  Bb1 {[%clk 0:00:07]} 81. Rd6 {[%clk 0:00:07]}  Bc2 {[%clk 0:00:08]} 82. Rd5 {[%clk 0:00:08]}  Bb1 {[%clk 0:00:07]} 83. Rd4 {[%clk 0:00:08]}  Bc2 {[%clk 0:00:07]} 84. Rd6 {[%clk 0:00:08]}  Bb1 {[%clk 0:00:07]} 85. Rc6+ {[%clk 0:00:09]}  Kd7 {[%clk 0:00:07]} 86. Rd6+ {[%clk 0:00:09]}  Kc7 {[%clk 0:00:07]} 87. Rd5 {[%clk 0:00:08]}  Bc2 {[%clk 0:00:07]} 88. Rd4 {[%clk 0:00:08]} 1/2-1/2


[Site "https://www.chess.com"]

[Event "Titled Tuesday Blitz November 08 Early 2022"]
[White "Bortnyk, Olexandr"]
[Black "Svane, Rasmus"]
[WhiteFideId "14120828"]
[BlackFideId "4657101"]
[WhiteElo "2723"]
[BlackElo "2674"]
[Result "1-0"]
[Round "07"]
[TimeControl "180+1"]
[Date "2022.11.08"]
[WhiteClock "0:01:06"]
[BlackClock "0:00:04"]

1. e4 {[%clk 0:03:00]}  c6 {[%clk 0:02:58]} 2. d4 {[%clk 0:03:00]}  d5 {[%clk 0:02:59]} 3. Nc3 {[%clk 0:03:01]}  dxe4 {[%clk 0:02:59]} 4. Nxe4 {[%clk 0:03:02]}  Nf6 {[%clk 0:03:00]} 5. Nxf6+ {[%clk 0:03:02]}  exf6 {[%clk 0:03:01]} 6. c3 {[%clk 0:03:02]}  Bd6 {[%clk 0:03:01]} 7. Bd3 {[%clk 0:03:03]}  O-O {[%clk 0:03:01]} 8. Qc2 {[%clk 0:03:03]}  Re8+ {[%clk 0:03:02]} 9. Ne2 {[%clk 0:03:04]}  h5 {[%clk 0:03:02]} 10. O-O {[%clk 0:03:02]}  h4 {[%clk 0:03:03]} 11. Nf4 {[%clk 0:03:01]}  Qc7 {[%clk 0:02:46]} 12. g3 {[%clk 0:03:00]}  Nd7 {[%clk 0:01:46]} 13. Qd1 {[%clk 0:03:00]}  g6 {[%clk 0:01:45]} 14. Qf3 {[%clk 0:02:45]}  hxg3 {[%clk 0:01:39]} 15. hxg3 {[%clk 0:02:45]}  Nf8 {[%clk 0:01:39]} 16. Bd2 {[%clk 0:02:19]}  f5 {[%clk 0:01:24]} 17. Rfe1 {[%clk 0:01:47]}  Bd7 {[%clk 0:01:24]} 18. Bc4 {[%clk 0:01:41]}  Kg7 {[%clk 0:01:18]} 19. Nh5+ {[%clk 0:01:35]}  gxh5 {[%clk 0:01:12]} 20. Qxh5 {[%clk 0:01:36]}  Re6 {[%clk 0:00:10]} 21. Bh6+ {[%clk 0:01:07]}  Kg8 {[%clk 0:00:06]} 22. Bxe6 {[%clk 0:01:07]}  Nxe6 {[%clk 0:00:03]} 23. Rxe6 {[%clk 0:01:06]}  fxe6 {[%clk 0:00:04]} 24. Qg6+ {[%clk 0:01:06]} 1-0


[Site "https://www.chess.com"]

[Event "Titled Tuesday Blitz November 08 Early 2022"]
[White "Boyer, Mahel"]
[Black "Winterberg, Lukas"]
[WhiteFideId "45102422"]
[BlackFideId "24622702"]
[WhiteElo "2454"]
[BlackElo "2349"]
[Result "0-1"]
[Round "07"]
[TimeControl "180+1"]
[Date "2022.11.09"]
[WhiteClock "0:00:02"]
[BlackClock "0:00:50"]

1. e4 {[%clk 0:02:39]}  e6 {[%clk 0:03:00]} 2. d4 {[%clk 0:02:38]}  d5 {[%clk 0:03:01]} 3. Nc3 {[%clk 0:02:38]}  Nf6 {[%clk 0:03:01]} 4. e5 {[%clk 0:02:37]}  Nfd7 {[%clk 0:03:01]} 5. f4 {[%clk 0:02:37]}  c5 {[%clk 0:03:02]} 6. Nf3 {[%clk 0:02:38]}  Nc6 {[%clk 0:03:03]} 7. Be3 {[%clk 0:02:38]}  a6 {[%clk 0:03:03]} 8. a3 {[%clk 0:02:37]}  cxd4 {[%clk 0:03:02]} 9. Nxd4 {[%clk 0:02:37]}  Bc5 {[%clk 0:03:03]} 10. Qd2 {[%clk 0:02:29]}  O-O {[%clk 0:03:03]} 11. Be2 {[%clk 0:02:04]}  Nxd4 {[%clk 0:02:59]} 12. Bxd4 {[%clk 0:02:04]}  b5 {[%clk 0:02:58]} 13. O-O {[%clk 0:02:03]}  Bb7 {[%clk 0:02:53]} 14. Bxc5 {[%clk 0:01:56]}  Nxc5 {[%clk 0:02:54]} 15. b4 {[%clk 0:01:56]}  Ne4 {[%clk 0:02:51]} 16. Nxe4 {[%clk 0:01:56]}  dxe4 {[%clk 0:02:52]} 17. Qe3 {[%clk 0:01:57]}  Qc7 {[%clk 0:02:50]} 18. Rac1 {[%clk 0:01:56]}  Bd5 {[%clk 0:02:42]} 19. Rfd1 {[%clk 0:01:54]}  Rac8 {[%clk 0:02:39]} 20. c3 {[%clk 0:01:50]}  Rfd8 {[%clk 0:02:38]} 21. Rd4 {[%clk 0:01:49]}  h6 {[%clk 0:02:35]} 22. h4 {[%clk 0:01:45]}  Qe7 {[%clk 0:02:33]} 23. h5 {[%clk 0:01:44]}  Rc7 {[%clk 0:02:30]} 24. Qg3 {[%clk 0:01:24]}  Rdc8 {[%clk 0:02:28]} 25. f5 {[%clk 0:01:24]}  Qg5 {[%clk 0:02:19]} 26. Qxg5 {[%clk 0:01:21]}  hxg5 {[%clk 0:02:20]} 27. c4 {[%clk 0:01:13]}  Bxc4 {[%clk 0:02:09]} 28. Bxc4 {[%clk 0:01:04]}  Rxc4 {[%clk 0:02:09]} 29. Rcxc4 {[%clk 0:01:04]}  bxc4 {[%clk 0:02:07]} 30. fxe6 {[%clk 0:01:02]}  fxe6 {[%clk 0:02:02]} 31. Rxe4 {[%clk 0:01:01]}  c3 {[%clk 0:01:58]} 32. Re1 {[%clk 0:01:01]}  g4 {[%clk 0:01:44]} 33. Rc1 {[%clk 0:01:02]}  Kh7 {[%clk 0:01:44]} 34. Kf2 {[%clk 0:00:59]}  Kh6 {[%clk 0:01:44]} 35. Ke3 {[%clk 0:01:00]}  Kxh5 {[%clk 0:01:42]} 36. Kd3 {[%clk 0:01:00]}  Kh4 {[%clk 0:01:42]} 37. Rxc3 {[%clk 0:00:54]}  Rxc3+ {[%clk 0:01:43]} 38. Kxc3 {[%clk 0:00:55]}  Kg3 {[%clk 0:01:44]} 39. a4 {[%clk 0:00:56]}  Kxg2 {[%clk 0:01:44]} 40. b5 {[%clk 0:00:55]}  axb5 {[%clk 0:01:45]} 41. axb5 {[%clk 0:00:39]}  Kf3 {[%clk 0:01:29]} 42. b6 {[%clk 0:00:40]}  g3 {[%clk 0:01:30]} 43. b7 {[%clk 0:00:40]}  g2 {[%clk 0:01:30]} 44. b8=Q {[%clk 0:00:41]}  g1=Q {[%clk 0:01:31]} 45. Qd6 {[%clk 0:00:05]}  Qc1+ {[%clk 0:01:24]} 46. Kd4 {[%clk 0:00:04]}  Qd1+ {[%clk 0:01:19]} 47. Kc5 {[%clk 0:00:05]}  Qb3 {[%clk 0:01:16]} 48. Kc6 {[%clk 0:00:01]}  g5 {[%clk 0:01:12]} 49. Kd7 {[%clk 0:00:02]}  g4 {[%clk 0:01:10]} 50. Qf8+ {[%clk 0:00:02]}  Ke4 {[%clk 0:01:07]} 51. Qf6 {[%clk 0:00:02]}  Qd5+ {[%clk 0:01:05]} 52. Ke7 {[%clk 0:00:03]}  Qxe5 {[%clk 0:01:04]} 53. Qg6+ {[%clk 0:00:03]}  Qf5 {[%clk 0:01:04]} 54. Qh6 {[%clk 0:00:03]}  g3 {[%clk 0:01:03]} 55. Qh1+ {[%clk 0:00:03]}  Qf3 {[%clk 0:01:02]} 56. Qb1+ {[%clk 0:00:04]}  Kf4 {[%clk 0:01:01]} 57. Qb4+ {[%clk 0:00:01]}  Qe4 {[%clk 0:01:00]} 58. Qd2+ {[%clk 0:00:02]}  Qe3 {[%clk 0:00:59]} 59. Qb4+ {[%clk 0:00:01]}  Kf5 {[%clk 0:00:58]} 60. Qb7 {[%clk 0:00:01]}  e5 {[%clk 0:00:55]} 61. Kf7 {[%clk 0:00:02]}  Kf4 {[%clk 0:00:52]} 62. Qd7 {[%clk 0:00:02]}  g2 {[%clk 0:00:50]} 63. Qh3 {[%clk 0:00:02]}  Qxh3 {[%clk 0:00:50]} 0-1


[Site "https://www.chess.com"]

[Event "Titled Tuesday Blitz November 08 Early 2022"]
[White "Buscar, Michael"]
[Black "Gonzalez Vega, Alejandro"]
[WhiteFideId "2603616"]
[BlackFideId "3510042"]
[WhiteElo "2010"]
[BlackElo "2285"]
[Result "0-1"]
[Round "07"]
[TimeControl "180+1"]
[Date "2022.11.09"]
[WhiteClock "0:00:01"]
[BlackClock "0:00:12"]

1. e4 {[%clk 0:02:50]}  c5 {[%clk 0:02:58]} 2. Nf3 {[%clk 0:02:50]}  a6 {[%clk 0:02:58]} 3. d4 {[%clk 0:02:50]}  cxd4 {[%clk 0:02:58]} 4. Nxd4 {[%clk 0:02:50]}  Nf6 {[%clk 0:02:59]} 5. Nc3 {[%clk 0:02:49]}  e5 {[%clk 0:02:59]} 6. Nb3 {[%clk 0:02:48]}  d6 {[%clk 0:02:56]} 7. Be2 {[%clk 0:02:37]}  Be6 {[%clk 0:02:55]} 8. g4 {[%clk 0:02:32]}  Be7 {[%clk 0:02:54]} 9. g5 {[%clk 0:02:30]}  Nfd7 {[%clk 0:02:53]} 10. h4 {[%clk 0:02:30]}  Nc6 {[%clk 0:02:40]} 11. Nd5 {[%clk 0:02:25]}  Bxd5 {[%clk 0:02:37]} 12. exd5 {[%clk 0:02:19]}  Na5 {[%clk 0:02:27]} 13. Be3 {[%clk 0:02:15]}  Nxb3 {[%clk 0:02:27]} 14. axb3 {[%clk 0:02:15]}  Rc8 {[%clk 0:02:25]} 15. Bg4 {[%clk 0:02:05]}  Qc7 {[%clk 0:02:21]} 16. c3 {[%clk 0:01:59]}  Rd8 {[%clk 0:01:57]} 17. Qf3 {[%clk 0:01:29]}  Nc5 {[%clk 0:01:51]} 18. Bxc5 {[%clk 0:01:03]}  Qxc5 {[%clk 0:01:48]} 19. Bh5 {[%clk 0:01:00]}  O-O {[%clk 0:01:45]} 20. Bg4 {[%clk 0:00:53]}  Qb5 {[%clk 0:01:24]} 21. b4 {[%clk 0:00:46]}  Qc4 {[%clk 0:01:17]} 22. Bf5 {[%clk 0:00:43]}  g6 {[%clk 0:01:12]} 23. Bc2 {[%clk 0:00:38]}  f5 {[%clk 0:01:06]} 24. gxf6 {[%clk 0:00:22]}  Rxf6 {[%clk 0:01:03]} 25. Qe4 {[%clk 0:00:20]}  Qxe4+ {[%clk 0:00:58]} 26. Bxe4 {[%clk 0:00:20]}  Rf4 {[%clk 0:00:58]} 27. f3 {[%clk 0:00:20]}  Rxh4 {[%clk 0:00:57]} 28. Rxh4 {[%clk 0:00:17]}  Bxh4+ {[%clk 0:00:57]} 29. Ke2 {[%clk 0:00:18]}  Rf8 {[%clk 0:00:56]} 30. b5 {[%clk 0:00:17]}  Ra8 {[%clk 0:00:45]} 31. Ra5 {[%clk 0:00:17]}  Bd8 {[%clk 0:00:42]} 32. Ra1 {[%clk 0:00:16]}  Bb6 {[%clk 0:00:39]} 33. Bd3 {[%clk 0:00:16]}  a5 {[%clk 0:00:38]} 34. b4 {[%clk 0:00:15]}  Ra7 {[%clk 0:00:38]} 35. c4 {[%clk 0:00:13]}  axb4 {[%clk 0:00:37]} 36. Rxa7 {[%clk 0:00:12]}  Bxa7 {[%clk 0:00:37]} 37. Kd2 {[%clk 0:00:12]}  Bd4 {[%clk 0:00:37]} 38. Kc2 {[%clk 0:00:12]}  b6 {[%clk 0:00:37]} 39. Kd1 {[%clk 0:00:07]}  Kg7 {[%clk 0:00:37]} 40. Ke2 {[%clk 0:00:07]}  Kf6 {[%clk 0:00:37]} 41. Kf1 {[%clk 0:00:07]}  Kg5 {[%clk 0:00:37]} 42. Kg2 {[%clk 0:00:08]}  h5 {[%clk 0:00:36]} 43. Kg3 {[%clk 0:00:08]}  h4+ {[%clk 0:00:36]} 44. Kh3 {[%clk 0:00:08]}  Kh5 {[%clk 0:00:33]} 45. Be4 {[%clk 0:00:07]}  Bf2 {[%clk 0:00:30]} 46. Kg2 {[%clk 0:00:04]}  Bc5 {[%clk 0:00:29]} 47. Kh3 {[%clk 0:00:04]}  Kg5 {[%clk 0:00:28]} 48. Kg2 {[%clk 0:00:03]}  b3 {[%clk 0:00:29]} 49. Kh3 {[%clk 0:00:02]}  b2 {[%clk 0:00:29]} 50. Kg2 {[%clk 0:00:02]}  Kf4 {[%clk 0:00:28]} 51. Bxg6 {[%clk 0:00:02]}  Ke3 {[%clk 0:00:28]} 52. Be4 {[%clk 0:00:01]}  Kd4 {[%clk 0:00:28]} 53. Kh3 {[%clk 0:00:02]}  Kxc4 {[%clk 0:00:27]} 54. Kxh4 {[%clk 0:00:03]}  Kxb5 {[%clk 0:00:27]} 55. Kg5 {[%clk 0:00:03]}  Be3+ {[%clk 0:00:26]} 56. Kf5 {[%clk 0:00:04]}  Kc5 {[%clk 0:00:26]} 57. Ke6 {[%clk 0:00:04]}  b5 {[%clk 0:00:26]} 58. Bb1 {[%clk 0:00:04]}  b4 {[%clk 0:00:26]} 59. Bc2 {[%clk 0:00:04]}  b3 {[%clk 0:00:24]} 60. Bb1 {[%clk 0:00:05]}  Bf4 {[%clk 0:00:22]} 61. Be4 {[%clk 0:00:04]}  Bg5 {[%clk 0:00:20]} 62. Bb1 {[%clk 0:00:03]}  Bd8 {[%clk 0:00:20]} 63. Be4 {[%clk 0:00:03]}  Bb6 {[%clk 0:00:20]} 64. Bb1 {[%clk 0:00:02]}  Ba5 {[%clk 0:00:21]} 65. Be4 {[%clk 0:00:02]}  Bb4 {[%clk 0:00:21]} 66. Kd7 {[%clk 0:00:02]}  Kd4 {[%clk 0:00:21]} 67. Kc6 {[%clk 0:00:02]}  Kc3 {[%clk 0:00:20]} 68. Kb5 {[%clk 0:00:03]}  Bc5 {[%clk 0:00:20]} 69. Ka4 {[%clk 0:00:03]}  Bb4 {[%clk 0:00:17]} 70. Bb1 {[%clk 0:00:01]}  Bc5 {[%clk 0:00:16]} 71. Be4 {[%clk 0:00:02]}  Bd4 {[%clk 0:00:13]} 72. Bb1 {[%clk 0:00:01]}  Kc4 {[%clk 0:00:13]} 73. Be4 {[%clk 0:00:01]}  Bc5 {[%clk 0:00:12]} 0-1


[Site "https://www.chess.com"]

[Event "Titled Tuesday Blitz November 08 Early 2022"]
[White "Carbone, Diego"]
[Black "Ciuffoletti, Paolo"]
[WhiteFideId "3002179"]
[BlackFideId "807630"]
[WhiteElo "2265"]
[BlackElo "2143"]
[Result "0-1"]
[Round "07"]
[TimeControl "180+1"]
[Date "2022.11.09"]
[WhiteClock "0:00:42"]
[BlackClock "0:00:17"]

1. d4 {[%clk 0:03:00]}  d5 {[%clk 0:02:59]} 2. c4 {[%clk 0:02:58]}  c6 {[%clk 0:02:59]} 3. Nf3 {[%clk 0:02:58]}  Nf6 {[%clk 0:02:59]} 4. e3 {[%clk 0:02:58]}  Bf5 {[%clk 0:02:57]} 5. Nc3 {[%clk 0:02:58]}  e6 {[%clk 0:02:57]} 6. Nh4 {[%clk 0:02:58]}  Be4 {[%clk 0:02:57]} 7. f3 {[%clk 0:02:58]}  Bg6 {[%clk 0:02:57]} 8. Qb3 {[%clk 0:02:58]}  Qb6 {[%clk 0:02:54]} 9. Nxg6 {[%clk 0:02:58]}  hxg6 {[%clk 0:02:53]} 10. Bd2 {[%clk 0:02:58]}  Bd6 {[%clk 0:02:47]} 11. f4 {[%clk 0:02:48]}  Ne4 {[%clk 0:02:16]} 12. c5 {[%clk 0:02:31]}  Qxb3 {[%clk 0:02:14]} 13. axb3 {[%clk 0:02:32]}  Nxc3 {[%clk 0:01:32]} 14. bxc3 {[%clk 0:02:31]}  Bc7 {[%clk 0:01:28]} 15. b4 {[%clk 0:02:29]}  Nd7 {[%clk 0:01:27]} 16. b5 {[%clk 0:02:29]}  cxb5 {[%clk 0:01:25]} 17. Bxb5 {[%clk 0:02:29]}  Ke7 {[%clk 0:01:24]} 18. c4 {[%clk 0:02:22]}  a6 {[%clk 0:01:19]} 19. Bxd7 {[%clk 0:02:22]}  Kxd7 {[%clk 0:01:18]} 20. cxd5 {[%clk 0:02:23]}  exd5 {[%clk 0:01:19]} 21. Ke2 {[%clk 0:02:14]}  Rae8 {[%clk 0:01:14]} 22. Kf3 {[%clk 0:02:13]}  Re4 {[%clk 0:01:05]} 23. h3 {[%clk 0:01:59]}  Ra8 {[%clk 0:00:55]} 24. Rhb1 {[%clk 0:01:59]}  Kc6 {[%clk 0:00:53]} 25. Ba5 {[%clk 0:01:57]}  Bxa5 {[%clk 0:00:43]} 26. Rxa5 {[%clk 0:01:58]}  Rae8 {[%clk 0:00:43]} 27. Rb6+ {[%clk 0:01:57]}  Kc7 {[%clk 0:00:41]} 28. Ra3 {[%clk 0:01:56]}  R8e6 {[%clk 0:00:41]} 29. Rab3 {[%clk 0:01:47]}  Rxb6 {[%clk 0:00:39]} 30. Rxb6 {[%clk 0:01:47]}  Re6 {[%clk 0:00:38]} 31. Rxe6 {[%clk 0:01:27]}  fxe6 {[%clk 0:00:37]} 32. g4 {[%clk 0:01:18]}  b6 {[%clk 0:00:28]} 33. cxb6+ {[%clk 0:01:17]}  Kxb6 {[%clk 0:00:28]} 34. e4 {[%clk 0:01:15]}  Kb5 {[%clk 0:00:20]} 35. exd5 {[%clk 0:01:13]}  exd5 {[%clk 0:00:20]} 36. f5 {[%clk 0:00:56]}  gxf5 {[%clk 0:00:18]} 37. gxf5 {[%clk 0:00:56]}  a5 {[%clk 0:00:19]} 38. h4 {[%clk 0:00:52]}  a4 {[%clk 0:00:18]} 39. h5 {[%clk 0:00:50]}  a3 {[%clk 0:00:18]} 40. h6 {[%clk 0:00:40]}  gxh6 {[%clk 0:00:17]} 41. f6 {[%clk 0:00:41]}  a2 {[%clk 0:00:17]} 42. f7 {[%clk 0:00:41]}  a1=Q {[%clk 0:00:17]} 43. f8=Q {[%clk 0:00:42]}  Qf1+ {[%clk 0:00:17]} 0-1


[Site "https://www.chess.com"]